bitfinex/quotes_SOLUSD_20240623
["timestamp","ask_amount","ask_price","bid_price","bid_amount"]
[1719135872192,14.8844,134.62,134.57,13.8758]
[1719135873882,15.0539,134.63,134.58,7.4305]
[1719135874878,7.5979,134.63,134.58,7.4305]
[1719135875101,7.456,134.62,134.58,7.4305]
[1719135876276,7.626,134.63,134.59,7.4299]
[1719135876494,0.17,134.63,134.59,7.4299]
[1719135877394,7.626,134.63,134.59,7.4299]
[1719135879683,0.17,134.63,134.59,7.4299]
[1719135879887,7.626,134.63,134.59,7.4299]
[1719135883101,0.17,134.63,134.57,6.4449]
[1719135883318,7.4286,134.62,134.57,13.8756]
[1719135883480,0.17,134.61,134.57,13.8756]
[1719135885706,0.17,134.61,134.57,6.4449]
[1719135887002,0.17,134.61,134.57,13.8758]
[1719135887194,0.17,134.61,134.56,22.453]
[1719135887506,7.5989,134.61,134.56,22.453]
[1719135888392,7.5989,134.61,134.56,7.4312]
[1719135890803,7.4296,134.6,134.55,7.4319]
[1719135891288,7.599,134.61,134.55,7.4319]
[1719135891999,7.4294,134.6,134.55,7.4319]
[1719135893313,7.5991,134.61,134.55,7.4319]
[1719135894100,7.4294,134.6,134.55,7.4319]
[1719135896702,0.17,134.59,134.55,7.4319]
[1719135900795,7.6002,134.59,134.53,29.5447]
[1719135901104,7.6002,134.59,134.53,22.1119]
[1719135902003,7.6002,134.59,134.54,7.4327]
[1719135902904,0.17,134.59,134.54,7.4327]
[1719135903104,0.17,134.59,134.55,7.432]
[1719135906121,7.6001,134.59,134.54,7.4325]
[1719135906614,7.6001,134.59,134.53,7.4331]
[1719135907299,7.4305,134.58,134.53,7.4331]
[1719135907506,0.17,134.57,134.53,7.4331]
[1719135908297,0.17,134.58,134.53,7.4331]
[1719135908498,0.17,134.58,134.54,7.4326]
[1719135908920,0.17,134.58,134.53,7.433]
[1719135909309,7.6005,134.58,134.53,7.433]
[1719135910107,15.0565,134.58,134.53,7.433]
[1719135910819,7.4319,134.56,134.51,7.4343]
[1719135912503,16.7278,134.58,134.5,23.1017]
[1719135912504,7.4323,134.55,134.5,23.1017]
[1719135913628,7.6018,134.56,134.5,23.1017]
[1719135914005,7.4323,134.55,134.5,7.4347]
[1719135914325,7.6027,134.54,134.49,7.4353]
[1719135914531,7.4327,134.54,134.49,7.4353]
[1719135914914,7.4334,134.53,134.48,7.4359]
[1719135918719,0.17,134.52,134.48,7.4359]
[1719135922527,0.17,134.52,134.47,7.4363]
[1719135923510,7.6039,134.52,134.47,7.4363]
[1719135924027,0.17,134.52,134.47,7.4363]
[1719135924216,0.17,134.52,134.48,7.4358]
[1719135926240,0.17,134.52,134.47,7.4363]
[1719135928733,7.6039,134.52,134.47,7.4363]
[1719135931227,16.5578,134.54,134.48,13.9258]
[1719135931425,0.17,134.53,134.48,13.9258]
[1719135931626,7.6033,134.53,134.48,13.9258]
[1719135931934,7.6033,134.53,134.48,7.4358]
[1719135933320,7.4339,134.52,134.47,13.9263]
[1719135936425,7.4339,134.52,134.47,7.4363]
[1719135936624,7.4339,134.52,134.47,13.9263]
[1719135936842,7.4344,134.51,134.47,6.49]
[1719135937220,7.4344,134.51,134.46,24.0977588]
[1719135937427,7.4344,134.51,134.47,6.49]
[1719135937627,7.4344,134.51,134.46,30.5877588]
[1719135938134,7.435,134.5,134.46,16.6609588]
[1719135938346,7.435,134.5,134.46,23.1509588]
[1719135938526,0.17,134.53,134.46,16.6609588]
[1719135938527,7.4346,134.51,134.46,16.6609588]
[1719135938839,7.4346,134.51,134.46,24.0980588]
[1719135939338,7.4346,134.51,134.46,16.6609588]
[1719135940641,7.4346,134.51,134.46,24.0979588]
[1719135940821,7.4346,134.51,134.46,30.5879588]
[1719135943044,7.4346,134.51,134.46,24.0979588]
[1719135945930,7.4351,134.5,134.46,0.8741588]
[1719135946446,0.17,134.53,134.46,0.8741588]
[1719135946447,18.5847,134.52,134.46,0.8741588]
[1719135946639,41.8244,134.51,134.46,0.8741588]
[1719135946831,7.436,134.49,134.46,0.8741588]
[1719135948926,7.4362,134.48,134.46,0.8741588]
[1719135950350,7.4366,134.47,134.46,0.8741588]
[1719135951127,7.4362,134.48,134.46,0.8741588]
[1719135951347,14.8922,134.48,134.46,0.8741588]
[1719135955754,7.4366,134.47,134.46,0.8741588]
[1719135973870,7.6066,134.47,134.46,0.8741588]
[1719135978874,7.4366,134.47,134.46,0.8741588]
[1719135981366,7.4361,134.48,134.46,0.8741588]
[1719135982085,7.436,134.48,134.46,0.8741588]
[1719135983778,7.4356,134.49,134.46,0.8741588]
[1719135986286,14.8916,134.49,134.46,0.8741588]
[1719135986788,7.4361,134.48,134.46,0.8741588]
[1719135986963,7.4366,134.47,134.46,0.8741588]
[1719135989379,7.4362,134.48,134.46,0.8741588]
[1719135990765,7.4356,134.49,134.46,0.8741588]
[1719135991112,14.8916,134.49,134.46,0.8741588]
[1719135991666,7.436,134.48,134.46,0.8741588]
[1719135992973,7.4366,134.47,134.46,0.8741588]
[1719135994000,14.8922,134.48,134.46,0.8741588]
[1719135994892,7.4362,134.48,134.46,0.8741588]
[1719135995391,20.0,134.51,134.46,17.0677588]
[1719135995571,7.4341,134.52,134.47,7.4365]
[1719135996271,14.8901,134.52,134.47,7.4365]
[1719135997377,14.8901,134.52,134.46,24.5046588]
[1719135998315,14.8904,134.51,134.46,24.5046588]
[1719135999112,7.4344,134.51,134.46,24.5046588]
[1719135999269,14.8904,134.51,134.46,24.5046588]
[1719136000403,7.4344,134.51,134.46,24.5046588]
[1719136000896,14.8904,134.51,134.46,24.5046588]
[1719136002199,7.4339,134.52,134.47,7.4365]
[1719136002381,7.4339,134.52,134.46,124.5047588]
[1719136003476,7.456,134.51,134.46,124.5047588]
[1719136005193,7.4339,134.52,134.47,7.4365]
[1719136005401,7.456,134.51,134.47,7.4365]
[1719136005786,7.4339,134.52,134.47,7.4365]
[1719136006197,7.456,134.51,134.47,7.4365]
[1719136006402,7.456,134.51,134.46,124.5046588]
[1719136006897,7.4344,134.51,134.46,124.5046588]
[1719136007299,7.456,134.51,134.46,124.5046588]
[1719136008901,7.434,134.52,134.46,124.5046588]
[1719136009099,14.8894,134.53,134.47,7.4364]
[1719136011486,14.8899,134.52,134.47,7.4364]
[1719136012805,14.8899,134.52,134.46,124.5046588]
[1719136013501,14.8905,134.51,134.46,124.5046588]
[1719136013709,14.8905,134.51,134.46,117.0677588]
[1719136014389,14.8905,134.51,134.46,124.5048588]
[1719136015108,7.4345,134.51,134.46,124.5048588]
[1719136015408,14.8905,134.51,134.46,124.5048588]
[1719136015982,7.456,134.51,134.46,124.5048588]
[1719136016582,7.456,134.5,134.46,24.5048588]
[1719136016783,7.4345,134.51,134.46,24.5048588]
[1719136017605,14.8905,134.51,134.46,24.5048588]
[1719136018394,7.456,134.51,134.46,24.5048588]
[1719136019184,7.456,134.51,134.47,7.4365]
[1719136020709,7.456,134.51,134.46,24.5046588]
[1719136022507,7.4344,134.51,134.46,17.0677588]
[1719136022905,7.4334,134.53,134.48,7.436]
[1719136023212,7.4338,134.52,134.47,7.4364]
[1719136023407,7.4338,134.52,134.46,24.5046588]
[1719136024208,7.4334,134.53,134.48,7.436]
[1719136025085,7.4328,134.54,134.48,7.436]
[1719136025285,7.4332,134.53,134.48,7.436]
[1719136025497,7.4332,134.53,134.47,7.4364]
[1719136026311,7.456,134.52,134.47,7.4364]
[1719136027401,7.4332,134.53,134.47,7.4364]
[1719136027601,7.456,134.52,134.47,7.4364]
[1719136028510,15.22,134.56,134.46,17.0677588]
[1719136028511,7.4349,134.51,134.46,17.0677588]
[1719136028916,14.8909,134.51,134.46,17.0677588]
[1719136030703,14.8909,134.51,134.46,24.5047588]
[1719136031319,7.434,134.52,134.46,24.5047588]
[1719136031511,7.456,134.51,134.46,24.5047588]
[1719136031905,7.434,134.52,134.47,7.4365]
[1719136032211,7.4334,134.53,134.47,7.4365]
[1719136033725,7.456,134.52,134.47,7.4365]
[1719136036209,7.4344,134.51,134.46,24.5046588]
[1719136036532,7.435,134.5,134.46,17.0677588]
[1719136036701,0.17,134.49,134.46,0.8741588]
[1719136036907,7.4356,134.49,134.46,0.8741588]
[1719136040016,0.17,134.5,134.46,0.8741588]
[1719136040518,7.4366,134.47,134.46,0.8741588]
[1719136040707,14.8926,134.47,134.46,0.8741588]
[1719136042312,15.0626,134.47,134.46,0.8741588]
[1719136044427,35.0626,134.47,134.46,0.8741588]
[1719136046627,27.6066,134.47,134.46,0.8741588]
[1719136046828,35.0626,134.47,134.46,0.8741588]
[1719136054332,34.8926,134.47,134.46,0.8741588]
[1719136059126,35.0626,134.47,134.46,0.8741588]
[1719136060438,53.6541,134.47,134.46,0.8741588]
[1719136069851,98.6541,134.47,134.46,0.8741588]
[1719136072051,106.998714,134.47,134.46,0.8741588]
[1719136078054,99.372714,134.47,134.46,0.8741588]
[1719136078232,46.0281,134.47,134.46,0.8741588]
[1719136078432,53.4881,134.47,134.46,0.8741588]
[1719136079561,53.6581,134.47,134.46,0.8741588]
[1719136080855,98.6581,134.47,134.46,0.8741588]
[1719136095178,53.6581,134.47,134.46,0.8741588]
[1719136105575,53.6581,134.47,134.46,0.8741588]
[1719136112756,27.4366,134.47,134.46,0.8741588]
[1719136112962,7.4366,134.47,134.46,0.8741588]
[1719136113579,14.8966,134.47,134.46,0.8741588]
[1719136114879,7.4366,134.47,134.46,0.8741588]
[1719136116087,14.8966,134.47,134.46,0.8741588]
[1719136116381,7.4366,134.47,134.46,0.8741588]
[1719136117084,14.8966,134.47,134.46,0.8741588]
[1719136117685,7.4366,134.47,134.46,0.8741588]
[1719136119280,14.8966,134.47,134.46,0.8741588]
[1719136122965,7.4362,134.48,134.46,16.7241588]
[1719136123869,7.4366,134.47,134.46,16.7241588]
[1719136124998,14.8966,134.47,134.46,16.7241588]
[1719136125285,7.4366,134.47,134.46,16.7241588]
[1719136125491,7.4366,134.47,134.46,0.8741588]
[1719136126167,14.8966,134.47,134.46,0.8741588]
[1719136129296,7.46,134.47,134.46,0.8741588]
[1719136130382,7.4362,134.48,134.46,0.8741588]
[1719136130695,7.46,134.47,134.46,0.8741588]
[1719136134300,7.4362,134.48,134.46,0.8741588]
[1719136134602,7.46,134.47,134.46,0.8741588]
[1719136134978,7.4362,134.48,134.46,0.8741588]
[1719136135580,7.46,134.47,134.46,0.8741588]
[1719136137295,7.4362,134.48,134.46,0.8741588]
[1719136137495,14.8966,134.47,134.46,0.8741588]
[1719136141109,7.46,134.47,134.46,0.8741588]
[1719136142782,7.4362,134.48,134.46,0.8741588]
[1719136142987,7.46,134.47,134.46,0.8741588]
[1719136147103,7.4362,134.48,134.46,0.8741588]
[1719136147491,7.46,134.47,134.46,0.8741588]
[1719136148806,14.8966,134.47,134.46,0.8741588]
[1719136152917,7.4366,134.47,134.46,0.8741588]
[1719136153911,14.8966,134.47,134.46,0.8741588]
[1719136156293,7.4362,134.48,134.46,0.8741588]
[1719136156619,7.46,134.47,134.46,0.8741588]
[1719136157303,7.4366,134.47,134.46,0.8741588]
[1719136157499,14.8966,134.47,134.46,0.8741588]
[1719136158308,7.4362,134.48,134.46,0.8741588]
[1719136158506,7.46,134.47,134.46,0.8741588]
[1719136158719,7.4366,134.47,134.46,0.8741588]
[1719136159311,7.4362,134.48,134.46,0.8741588]
[1719136159492,7.46,134.47,134.46,0.8741588]
[1719136160613,14.8966,134.47,134.46,0.8741588]
[1719136160797,7.4366,134.47,134.46,0.8741588]
[1719136161607,14.8966,134.47,134.46,0.8741588]
[1719136166408,7.4361,134.48,134.46,0.8741588]
[1719136166592,7.46,134.47,134.46,0.8741588]
[1719136166999,7.6056,134.49,134.46,0.8741588]
[1719136167521,7.46,134.48,134.46,0.8741588]
[1719136169401,7.46,134.47,134.46,0.8741588]
[1719136171901,18.5846,134.52,134.46,0.8741588]
[1719136172099,7.46,134.5,134.46,0.8741588]
[1719136172299,7.46,134.47,134.46,0.8741588]
[1719136173101,7.46,134.48,134.46,0.8741588]
[1719136174697,7.4357,134.49,134.46,0.8741588]
[1719136175134,7.46,134.48,134.46,0.8741588]
[1719136175638,7.46,134.53,134.46,0.8741588]
[1719136175806,14.894,134.52,134.47,15.6275]
[1719136176000,7.46,134.52,134.47,23.0637]
[1719136176194,272.5778,134.57,134.49,7.4353]
[1719136176394,272.5778,134.57,134.48,100.0]
[1719136176395,7.4325,134.55,134.48,100.0]
[1719136176626,7.4325,134.55,134.5,7.4348]
[1719136176833,7.46,134.54,134.49,7.4352]
[1719136177504,7.4325,134.55,134.49,7.4352]
[1719136178025,254.0,134.57,134.48,106.49]
[1719136178325,7.4326,134.55,134.49,7.4353]
[1719136179204,7.4328,134.54,134.49,7.4353]
[1719136179403,7.4328,134.54,134.48,107.4359]
[1719136180111,26.2091,134.56,134.47,15.6275]
[1719136180318,7.4342,134.52,134.47,15.6275]
[1719136181799,7.4342,134.52,134.47,23.0639]
[1719136182001,7.4335,134.53,134.47,23.0639]
[1719136182200,7.4335,134.53,134.48,7.436]
[1719136183325,27.46,134.55,134.5,7.4345]
[1719136183539,7.46,134.56,134.48,100.0]
[1719136183713,14.8916,134.56,134.51,7.4343]
[1719136184108,14.8916,134.56,134.5,7.4348]
[1719136185622,14.8916,134.56,134.5,107.4348]
[1719136185814,14.8916,134.56,134.51,7.4342]
[1719136186250,7.46,134.56,134.52,123.0611]
[1719136186422,7.4308,134.58,134.52,123.0611]
[1719136187435,7.46,134.57,134.52,123.0611]
[1719136187834,7.4308,134.58,134.52,123.0611]
[1719136188134,7.46,134.57,134.52,123.0611]
[1719136188722,7.4308,134.58,134.52,123.0611]
[1719136189119,7.46,134.57,134.52,123.0611]
[1719136189518,14.8911,134.57,134.52,123.0611]
[1719136189718,7.4311,134.57,134.52,123.0611]
[1719136190227,14.8911,134.57,134.52,123.0611]
[1719136190613,26.0352,134.59,134.52,15.6275]
[1719136191017,7.4322,134.55,134.52,15.6275]
[1719136191525,7.4317,134.56,134.52,15.6275]
[1719136192537,7.4316,134.56,134.52,15.6275]
[1719136195620,7.4316,134.56,134.5,13.9798]
[1719136195823,26.0352,134.59,134.5,13.9798]
[1719136195824,7.4322,134.55,134.5,13.9798]
[1719136196318,7.4317,134.56,134.5,13.9798]
[1719136196618,14.8911,134.57,134.51,7.4342]
[1719136197219,7.4317,134.56,134.5,13.9798]
[1719136201829,7.6022,134.55,134.5,13.9798]
[1719136202034,7.4317,134.56,134.51,7.4342]
[1719136203050,7.6013,134.57,134.51,7.4342]
[1719136203424,15.0613,134.57,134.51,7.4342]
[1719136204647,0.17,134.57,134.5,13.9798]
[1719136204947,20.17,134.57,134.5,6.5451]
[1719136205337,0.17,134.57,134.5,6.5451]
[1719136205942,7.63,134.57,134.5,6.5451]
[1719136206149,7.4324,134.55,134.5,13.9798]
[1719136208851,7.4324,134.55,134.5,6.5451]
[1719136209624,7.4328,134.54,134.5,6.5451]
[1719136214234,7.6023,134.55,134.5,13.9799]
[1719136214568,7.4323,134.55,134.5,13.9799]
[1719136215143,7.4317,134.56,134.5,6.5451]
[1719136215345,7.4317,134.56,134.5,13.9797]
[1719136216459,7.4317,134.56,134.51,7.4343]
[1719136217037,7.4317,134.56,134.5,13.9798]
[1719136219136,7.4323,134.55,134.5,13.9798]
[1719136219333,7.4333,134.53,134.5,6.5451]
[1719136219664,7.63,134.57,134.5,6.5451]
[1719136219665,7.433,134.54,134.5,6.5451]
[1719136227671,7.6023,134.55,134.5,13.98]
[1719136227845,7.4323,134.55,134.5,13.98]
[1719136228665,7.46,134.55,134.5,13.98]
[1719136230386,14.8924,134.55,134.5,13.98]
[1719136233779,14.8924,134.55,134.5,6.5451]
[1719136237002,7.4327,134.54,134.5,6.5451]
[1719136240878,14.8924,134.55,134.5,6.5451]
[1719136241893,7.4324,134.55,134.5,13.9798]
[1719136242073,7.46,134.55,134.5,13.9798]
[1719136242386,7.4323,134.55,134.5,6.5451]
[1719136243391,14.8923,134.55,134.5,6.5451]
[1719136243803,7.4323,134.55,134.5,6.5451]
[1719136244092,14.8923,134.55,134.51,15.7384]
[1719136244672,7.46,134.55,134.51,15.7384]
[1719136244871,7.4317,134.56,134.51,23.1727]
[1719136245090,7.46,134.55,134.51,23.1727]
[1719136246897,7.46,134.55,134.51,15.7384]
[1719136249901,14.8922,134.55,134.51,15.7384]
[1719136252096,7.4322,134.55,134.51,15.7384]
[1719136252303,14.8922,134.55,134.51,15.7384]
[1719136253405,7.4322,134.55,134.51,15.7384]
[1719136261204,7.4328,134.54,134.51,15.7384]
[1719136262098,7.4324,134.55,134.51,15.7384]
[1719136262689,14.8918,134.56,134.51,15.7384]
[1719136265301,14.8918,134.56,134.51,23.1727]
[1719136269728,14.8918,134.56,134.51,15.7384]
[1719136269908,7.4323,134.55,134.51,15.7384]
[1719136272530,14.8923,134.55,134.51,15.7384]
[1719136279035,7.4313,134.57,134.51,15.7384]
[1719136279411,7.4313,134.57,134.51,23.1724]
[1719136279613,7.4317,134.56,134.51,23.1724]
[1719136280131,14.8917,134.56,134.51,23.1724]
[1719136281426,14.8917,134.56,134.51,15.7384]
[1719136281927,7.4317,134.56,134.51,15.7384]
[1719136282315,7.4323,134.55,134.51,15.7384]
[1719136285335,14.8918,134.56,134.51,15.7384]
[1719136285824,14.8918,134.56,134.51,23.1727]
[1719136286432,14.8918,134.56,134.51,15.7384]
[1719136289128,7.4318,134.56,134.51,15.7384]
[1719136289336,14.8918,134.56,134.51,15.7384]
[1719136295726,0.17,134.57,134.51,15.7384]
[1719136295913,7.46,134.56,134.51,15.7384]
[1719136296433,7.4327,134.54,134.51,15.7384]
[1719136296839,7.4323,134.55,134.51,15.7384]
[1719136304327,7.4329,134.54,134.51,15.7384]
[1719136306032,7.4324,134.55,134.51,15.7384]
[1719136307854,7.4328,134.54,134.51,15.7384]
[1719136308227,7.4328,134.54,134.5,6.5451]
[1719136312225,15.0624,134.55,134.5,6.5451]
[1719136313031,15.0624,134.55,134.5,13.98]
[1719136313232,15.0624,134.55,134.5,6.5451]
[1719136315251,15.0624,134.55,134.5,13.9798]
[1719136315550,14.8924,134.55,134.5,13.9798]
[1719136316943,14.8917,134.56,134.51,16.1902]
[1719136317128,14.8917,134.56,134.51,23.6245]
[1719136317737,7.4323,134.55,134.51,16.1902]
[1719136318542,7.433,134.54,134.51,16.1902]
[1719136318747,7.4323,134.55,134.51,16.1902]
[1719136324259,14.8918,134.56,134.51,16.1902]
[1719136325262,14.8918,134.56,134.51,23.6245]
[1719136325844,14.8918,134.56,134.51,16.1902]
[1719136328443,14.8918,134.56,134.51,23.6244]
[1719136332665,7.46,134.56,134.51,23.6244]
[1719136332867,7.46,134.56,134.52,7.4338]
[1719136334163,7.46,134.56,134.51,23.6243]
[1719136334338,14.8916,134.56,134.51,23.6243]
[1719136335348,7.46,134.56,134.51,23.6243]
[1719136338262,7.4317,134.56,134.51,23.6243]
[1719136339167,14.8917,134.56,134.51,23.6243]
[1719136342779,7.46,134.56,134.51,23.6243]
[1719136342978,7.46,134.56,134.52,7.4337]
[1719136345373,7.46,134.58,134.53,7.4328]
[1719136345574,7.4305,134.59,134.53,7.4328]
[1719136345776,7.4305,134.59,134.54,6.0111]
[1719136345990,272.5704,134.63,134.54,29.4521]
[1719136345991,7.4296,134.6,134.54,29.4521]
[1719136346355,7.46,134.59,134.54,29.4521]
[1719136346973,7.46,134.58,134.54,29.4521]
[1719136348355,7.46,134.58,134.54,22.0195]
[1719136348663,7.4299,134.59,134.54,22.0195]
[1719136349673,7.46,134.58,134.54,22.0195]
[1719136350486,7.4306,134.58,134.54,22.0195]
[1719136350675,14.8911,134.57,134.54,22.0195]
[1719136351486,7.46,134.57,134.54,22.0195]
[1719136354790,7.4307,134.58,134.54,22.0195]
[1719136354976,7.46,134.58,134.54,22.0195]
[1719136355362,7.4301,134.59,134.54,22.0195]
[1719136355891,7.46,134.58,134.54,29.452]
[1719136356686,7.4296,134.6,134.54,29.452]
[1719136357094,7.46,134.59,134.54,29.452]
[1719136357394,7.4296,134.6,134.54,29.452]
[1719136358793,7.4301,134.59,134.54,29.452]
[1719136359293,7.46,134.58,134.54,29.452]
[1719136360586,7.4301,134.59,134.54,29.452]
[1719136360792,7.46,134.58,134.54,29.452]
[1719136361173,7.46,134.59,134.54,29.452]
[1719136361372,14.8901,134.59,134.54,22.0195]
[1719136361595,7.4301,134.59,134.54,22.0195]
[1719136361979,7.46,134.58,134.54,22.0195]
[1719136362801,7.4301,134.59,134.54,22.0195]
[1719136362995,7.46,134.58,134.54,29.4522]
[1719136365599,7.4296,134.6,134.54,29.4522]
[1719136365791,7.46,134.59,134.54,29.4522]
[1719136370903,7.5989,134.61,134.55,7.4321]
[1719136371424,7.5989,134.61,134.56,7.4316]
[1719136372222,7.5989,134.61,134.55,7.4319]
[1719136372798,7.5988,134.61,134.56,7.4315]
[1719136373100,7.46,134.6,134.55,7.432]
[1719136373498,7.5988,134.61,134.55,7.432]
[1719136374295,7.46,134.6,134.55,7.432]
[1719136380417,7.46,134.59,134.55,7.432]
[1719136382517,7.46,134.6,134.55,7.432]
[1719136382697,7.45,134.6,134.55,7.432]
[1719136383221,14.8794,134.6,134.54,129.452]
[1719136386224,14.8794,134.6,134.55,7.4321]
[1719136388824,18.5682,134.65,134.56,122.5234]
[1719136389121,660.1647,134.67,134.56,129.0134]
[1719136389325,660.1647,134.67,134.59,7.4299]
[1719136389529,7.4268,134.65,134.59,7.4299]
[1719136389912,7.45,134.64,134.59,7.4299]
[1719136390312,254.0,134.73,134.63,7.4274]
[1719136390535,7.4243,134.7,134.63,7.4274]
[1719136390704,27.4245,134.69,134.63,7.4274]
[1719136391325,27.4245,134.69,134.64,7.4271]
[1719136391326,20.0,134.69,134.64,7.4271]
[1719136391539,7.4235,134.71,134.64,7.4271]
[1719136391832,7.4239,134.7,134.64,7.4271]
[1719136392006,59.3212,134.75,134.61,125.0618]
[1719136392007,20.0,134.74,134.65,122.5234]
[1719136392206,20.0,134.74,134.68,7.4246]
[1719136392526,7.4217,134.74,134.67,7.4253]
[1719136393329,14.8711,134.75,134.68,7.4249]
[1719136393829,7.45,134.76,134.67,7.4254]
[1719136394014,27.45,134.75,134.67,7.4254]
[1719136394916,0.17,134.74,134.67,7.4254]
[1719136395113,7.4224,134.73,134.67,7.4254]
[1719136395331,20.0,134.72,134.66,7.4259]
[1719136396926,27.4229,134.72,134.66,7.4259]
[1719136397239,27.4229,134.72,134.65,22.5234]
[1719136397240,7.4244,134.69,134.65,22.5234]
[1719136398810,7.45,134.71,134.65,122.5234]
[1719136399225,20.0,134.72,134.67,107.4255]
[1719136399815,79.6554179,134.85,134.71,16.4826]
[1719136399816,20.0,134.79,134.71,16.4826]
[1719136400028,7.4194,134.79,134.72,7.4227]
[1719136400334,7.4195,134.78,134.72,7.4227]
[1719136400513,7.4188,134.8,134.73,100.0]
[1719136400721,18.5435,134.82,134.71,22.9726]
[1719136400722,7.4196,134.78,134.72,7.4224]
[1719136402519,7.42,134.77,134.71,123.9058]
[1719136404120,7.4212,134.75,134.71,16.4826]
[1719136405045,7.4212,134.75,134.69,107.424]
[1719136405251,7.4212,134.75,134.69,100.0]
[1719136406321,7.4212,134.75,134.69,107.424]
[1719136406557,7.45,134.74,134.68,29.9482]
[1719136407419,7.45,134.74,134.69,7.4244]
[1719136411133,7.4212,134.75,134.69,7.4244]
[1719136413748,7.4217,134.74,134.69,7.4244]
[1719136415537,7.4217,134.74,134.68,29.9482]
[1719136417647,7.4222,134.73,134.68,29.9482]
[1719136417846,7.4222,134.73,134.68,23.9074]
[1719136418025,7.4222,134.73,134.68,16.4826]
[1719136418231,7.4222,134.73,134.67,107.4254]
[1719136419145,15.7336,134.77,134.67,100.0]
[1719136419351,27.62,134.76,134.67,100.0]
[1719136420347,27.62,134.76,134.69,7.4243]
[1719136421350,7.4217,134.74,134.69,7.4243]
[1719136421737,7.4217,134.74,134.68,7.4248]
[1719136422562,27.45,134.76,134.7,100.0]
[1719136423338,7.4212,134.75,134.7,100.0]
[1719136425264,7.4217,134.74,134.69,7.4242]
[1719136425464,7.4217,134.74,134.68,107.4249]
[1719136427275,7.4217,134.74,134.69,7.4244]
[1719136427657,7.4217,134.74,134.68,100.0]
[1719136427658,7.4217,134.74,134.68,107.4247]
[1719136429579,7.4222,134.73,134.68,100.0]
[1719136430473,7.4222,134.73,134.68,107.4249]
[1719136430660,7.4222,134.73,134.67,7.4254]
[1719136432458,16.3808,134.72,134.67,7.4254]
[1719136437184,23.8036,134.72,134.64,118.5678]
[1719136437974,23.8036,134.72,134.67,7.4255]
[1719136439594,23.8036,134.72,134.66,7.4258]
[1719136445474,7.4235,134.71,134.66,7.4258]
[1719136447586,16.3808,134.72,134.62,115.5768]
[1719136447788,7.4246,134.69,134.63,7.4275]
[1719136450187,7.4246,134.69,134.6,100.0]
[1719136450188,34.8752,134.68,134.62,7.428]
[1719136450385,14.8752,134.68,134.62,7.428]
[1719136451288,14.8752,134.68,134.63,7.4276]
[1719136451490,7.45,134.68,134.63,7.4276]
[1719136452586,7.4246,134.69,134.63,7.4276]
[1719136452787,20.0,134.68,134.65,7.4262]
[1719136452990,27.4238,134.71,134.66,7.426]
[1719136453177,20.0,134.71,134.66,7.426]
[1719136453682,7.45,134.7,134.66,7.426]
[1719136453995,20.0,134.71,134.66,7.426]
[1719136454179,23.8038,134.72,134.66,7.426]
[1719136454794,7.45,134.71,134.66,7.426]
[1719136455304,14.8734,134.71,134.66,7.426]
[1719136456300,14.8734,134.71,134.65,7.4265]
[1719136457985,14.8739,134.7,134.65,7.4265]
[1719136459700,14.8739,134.7,134.64,107.427]
[1719136464985,14.8739,134.7,134.65,7.4265]
[1719136465981,7.45,134.7,134.65,7.4265]
[1719136466181,16.3808,134.72,134.66,107.4259]